[Event "Titled Tuesday Blitz January 03 Late 2023"]
[White "Papasimakopoulos, Alexandros"]
[Black "Fiorito, Joaquin"]
[WhiteFideId "4244125"]
[BlackFideId "180173"]
[WhiteElo "2401"]
[BlackElo "2405"]
[Result "0-1"]
[Round "10"]
[TimeControl "180+2"]
[Date "2023.01.03"]
[WhiteClock "0:01:10"]
[BlackClock "0:00:08"]

1. e4 {[%clk 0:02:56]}  c6 {[%clk 0:02:59]} 2. d4 {[%clk 0:02:55]}  d5 {[%clk 0:03:00]} 3. f3 {[%clk 0:02:55]}  e6 {[%clk 0:02:59]} 4. Nc3 {[%clk 0:02:54]}  Bb4 {[%clk 0:03:00]} 5. Be3 {[%clk 0:02:51]}  Ne7 {[%clk 0:02:52]} 6. Bd3 {[%clk 0:02:50]}  Nd7 {[%clk 0:02:47]} 7. Ne2 {[%clk 0:02:50]}  O-O {[%clk 0:02:48]} 8. a3 {[%clk 0:02:48]}  Ba5 {[%clk 0:02:47]} 9. h4 {[%clk 0:02:47]}  Bc7 {[%clk 0:02:46]} 10. h5 {[%clk 0:02:46]}  Re8 {[%clk 0:02:36]} 11. Qd2 {[%clk 0:02:43]}  b5 {[%clk 0:02:35]} 12. g4 {[%clk 0:02:27]}  Nb6 {[%clk 0:02:34]} 13. g5 {[%clk 0:02:26]}  Nc4 {[%clk 0:02:25]} 14. Bxc4 {[%clk 0:02:26]}  bxc4 {[%clk 0:02:23]} 15. Bf4 {[%clk 0:02:26]}  Rb8 {[%clk 0:02:12]} 16. O-O-O {[%clk 0:02:06]}  Bxf4 {[%clk 0:02:06]} 17. Qxf4 {[%clk 0:02:07]}  Qb6 {[%clk 0:02:05]} 18. Kd2 {[%clk 0:02:07]}  Bd7 {[%clk 0:01:59]} 19. h6 {[%clk 0:02:06]}  Ng6 {[%clk 0:01:58]} 20. Qd6 {[%clk 0:02:05]}  e5 {[%clk 0:01:50]} 21. hxg7 {[%clk 0:01:54]}  exd4 {[%clk 0:01:45]} 22. Rxh7 {[%clk 0:01:53]}  dxc3+ {[%clk 0:01:34]} 23. bxc3 {[%clk 0:01:54]}  Kxh7 {[%clk 0:00:21]} 24. Rh1+ {[%clk 0:01:52]}  Kxg7 {[%clk 0:00:21]} 25. Qxd7 {[%clk 0:01:36]}  Re7 {[%clk 0:00:18]} 26. Qf5 {[%clk 0:01:33]}  c5 {[%clk 0:00:12]} 27. Nf4 {[%clk 0:01:25]}  dxe4 {[%clk 0:00:11]} 28. Nh5+ {[%clk 0:01:24]}  Kf8 {[%clk 0:00:12]} 29. Nf6 {[%clk 0:01:20]}  Qd6+ {[%clk 0:00:10]} 30. Kc1 {[%clk 0:01:14]}  Reb7 {[%clk 0:00:08]} 31. Nd5 {[%clk 0:01:08]}  Rb1+ {[%clk 0:00:07]} 32. Kd2 {[%clk 0:01:09]}  Rxh1 {[%clk 0:00:08]} 33. fxe4 {[%clk 0:01:09]}  Rh2+ {[%clk 0:00:07]} 34. Kc1 {[%clk 0:01:09]}  Rh1+ {[%clk 0:00:07]} 35. Kd2 {[%clk 0:01:09]}  Qh2+ {[%clk 0:00:08]} 36. Ke3 {[%clk 0:01:08]}  Re1+ {[%clk 0:00:08]} 37. Kf3 {[%clk 0:01:09]}  Rf1+ {[%clk 0:00:09]} 38. Kg4 {[%clk 0:01:10]}  Qh4# {[%clk 0:00:08]} 0-1


[Site "https://www.chess.com"]

[Event "Titled Tuesday Blitz January 03 Late 2023"]
[White "Vlassov, Nikolai"]
[Black "benny_aizenberg"]
[WhiteFideId "4103360"]
[WhiteElo "2283"]
[BlackElo "2507"]
[Result "1/2-1/2"]
[Round "10"]
[TimeControl "180+2"]
[Date "2023.01.03"]
[WhiteClock "0:00:19"]
[BlackClock "0:00:09"]

1. e4 {[%clk 0:03:00]}  c5 {[%clk 0:02:58]} 2. c3 {[%clk 0:03:00]}  Nf6 {[%clk 0:02:57]} 3. e5 {[%clk 0:03:01]}  Nd5 {[%clk 0:02:58]} 4. d4 {[%clk 0:03:01]}  cxd4 {[%clk 0:02:55]} 5. cxd4 {[%clk 0:03:02]}  d6 {[%clk 0:02:55]} 6. Bc4 {[%clk 0:03:02]}  Nb6 {[%clk 0:02:55]} 7. Bb3 {[%clk 0:03:02]}  dxe5 {[%clk 0:02:49]} 8. Qh5 {[%clk 0:03:01]}  e6 {[%clk 0:02:46]} 9. dxe5 {[%clk 0:03:01]}  Nc6 {[%clk 0:02:45]} 10. Nc3 {[%clk 0:03:01]}  g6 {[%clk 0:02:41]} 11. Qg5 {[%clk 0:03:00]}  Qxg5 {[%clk 0:02:25]} 12. Bxg5 {[%clk 0:02:59]}  Bg7 {[%clk 0:02:25]} 13. f4 {[%clk 0:02:56]}  h6 {[%clk 0:02:25]} 14. Bf6 {[%clk 0:02:56]}  Bxf6 {[%clk 0:02:22]} 15. exf6 {[%clk 0:02:56]}  O-O {[%clk 0:02:21]} 16. Nf3 {[%clk 0:02:55]}  a5 {[%clk 0:02:12]} 17. O-O {[%clk 0:02:39]}  a4 {[%clk 0:01:56]} 18. Bc2 {[%clk 0:02:39]}  a3 {[%clk 0:01:56]} 19. bxa3 {[%clk 0:02:35]}  Rxa3 {[%clk 0:01:55]} 20. Ne4 {[%clk 0:02:28]}  Nd5 {[%clk 0:01:50]} 21. Ne5 {[%clk 0:02:07]}  Nd4 {[%clk 0:01:37]} 22. Bd1 {[%clk 0:01:58]}  Re3 {[%clk 0:01:32]} 23. Bf3 {[%clk 0:01:37]}  Nxf4 {[%clk 0:01:31]} 24. Rae1 {[%clk 0:01:31]}  Nxf3+ {[%clk 0:01:21]} 25. gxf3 {[%clk 0:01:13]}  Ra3 {[%clk 0:01:19]} 26. Nd6 {[%clk 0:01:03]}  Rxa2 {[%clk 0:01:18]} 27. Nexf7 {[%clk 0:01:00]}  Rxf7 {[%clk 0:01:16]} 28. Nxc8 {[%clk 0:00:58]}  Rxf6 {[%clk 0:01:16]} 29. Nd6 {[%clk 0:00:54]}  b6 {[%clk 0:01:12]} 30. Rb1 {[%clk 0:00:46]}  Nd5 {[%clk 0:01:12]} 31. Rf2 {[%clk 0:00:36]}  Ra3 {[%clk 0:01:07]} 32. Rc1 {[%clk 0:00:28]}  Rfxf3 {[%clk 0:00:57]} 33. Rc8+ {[%clk 0:00:27]}  Kg7 {[%clk 0:00:58]} 34. Rb8 {[%clk 0:00:20]}  Rxf2 {[%clk 0:00:53]} 35. Kxf2 {[%clk 0:00:20]}  Kf6 {[%clk 0:00:53]} 36. Rb7 {[%clk 0:00:17]}  Rc3 {[%clk 0:00:49]} 37. Ne4+ {[%clk 0:00:15]}  Ke5 {[%clk 0:00:49]} 38. Nxc3 {[%clk 0:00:16]}  Nxc3 {[%clk 0:00:50]} 39. Rxb6 {[%clk 0:00:16]}  Nd5 {[%clk 0:00:50]} 40. Rb8 {[%clk 0:00:15]}  Ke4 {[%clk 0:00:48]} 41. Kg3 {[%clk 0:00:15]}  e5 {[%clk 0:00:48]} 42. Rh8 {[%clk 0:00:13]}  h5 {[%clk 0:00:47]} 43. Kh4 {[%clk 0:00:12]}  Kf5 {[%clk 0:00:47]} 44. Ra8 {[%clk 0:00:08]}  e4 {[%clk 0:00:44]} 45. Kg3 {[%clk 0:00:07]}  g5 {[%clk 0:00:39]} 46. Ra5 {[%clk 0:00:02]}  Ke5 {[%clk 0:00:35]} 47. h3 {[%clk 0:00:02]}  Kd4 {[%clk 0:00:34]} 48. Ra4+ {[%clk 0:00:02]}  Kd3 {[%clk 0:00:34]} 49. Ra5 {[%clk 0:00:02]}  Kc4 {[%clk 0:00:32]} 50. Ra4+ {[%clk 0:00:02]}  Kd3 {[%clk 0:00:29]} 51. Ra5 {[%clk 0:00:03]}  Kd4 {[%clk 0:00:22]} 52. Ra4+ {[%clk 0:00:03]}  Ke5 {[%clk 0:00:23]} 53. Ra5 {[%clk 0:00:04]}  Ke6 {[%clk 0:00:18]} 54. Ra6+ {[%clk 0:00:04]}  Kf5 {[%clk 0:00:18]} 55. Ra5 {[%clk 0:00:04]}  Ke5 {[%clk 0:00:18]} 56. Ra6 {[%clk 0:00:05]}  Ne3 {[%clk 0:00:07]} 57. Ra5+ {[%clk 0:00:05]}  Kf6 {[%clk 0:00:07]} 58. Ra6+ {[%clk 0:00:05]}  Kf7 {[%clk 0:00:07]} 59. Ra7+ {[%clk 0:00:05]}  Ke6 {[%clk 0:00:07]} 60. Ra6+ {[%clk 0:00:06]}  Ke7 {[%clk 0:00:07]} 61. Ra7+ {[%clk 0:00:06]}  Kd6 {[%clk 0:00:07]} 62. Ra6+ {[%clk 0:00:07]}  Ke5 {[%clk 0:00:07]} 63. Ra5+ {[%clk 0:00:07]}  Nd5 {[%clk 0:00:08]} 64. Rb5 {[%clk 0:00:08]}  Kd4 {[%clk 0:00:08]} 65. Ra5 {[%clk 0:00:08]}  e3 {[%clk 0:00:08]} 66. Kf3 {[%clk 0:00:08]}  Kc4 {[%clk 0:00:05]} 67. Ra4+ {[%clk 0:00:08]}  Kd3 {[%clk 0:00:05]} 68. Ra3+ {[%clk 0:00:08]}  Nc3 {[%clk 0:00:04]} 69. Rxc3+ {[%clk 0:00:08]}  Kxc3 {[%clk 0:00:04]} 70. Kxe3 {[%clk 0:00:09]}  Kc4 {[%clk 0:00:03]} 71. Ke4 {[%clk 0:00:09]}  Kc5 {[%clk 0:00:03]} 72. Kf5 {[%clk 0:00:09]}  g4 {[%clk 0:00:03]} 73. hxg4 {[%clk 0:00:10]}  h4 {[%clk 0:00:04]} 74. Kf4 {[%clk 0:00:09]}  Kd6 {[%clk 0:00:03]} 75. g5 {[%clk 0:00:10]}  Ke6 {[%clk 0:00:03]} 76. Kg4 {[%clk 0:00:10]}  Kf7 {[%clk 0:00:04]} 77. Kxh4 {[%clk 0:00:11]}  Kg6 {[%clk 0:00:04]} 78. Kg4 {[%clk 0:00:11]}  Kg7 {[%clk 0:00:05]} 79. Kf5 {[%clk 0:00:12]}  Kf7 {[%clk 0:00:06]} 80. Ke5 {[%clk 0:00:12]}  Kg6 {[%clk 0:00:06]} 81. Kf4 {[%clk 0:00:13]}  Kg7 {[%clk 0:00:06]} 82. Kf5 {[%clk 0:00:13]}  Kf7 {[%clk 0:00:07]} 83. g6+ {[%clk 0:00:14]}  Kg7 {[%clk 0:00:07]} 84. Kg5 {[%clk 0:00:14]}  Kg8 {[%clk 0:00:07]} 85. Kh6 {[%clk 0:00:15]}  Kh8 {[%clk 0:00:08]} 86. Kg5 {[%clk 0:00:15]}  Kg7 {[%clk 0:00:08]} 87. Kf5 {[%clk 0:00:16]}  Kg8 {[%clk 0:00:08]} 88. Kf6 {[%clk 0:00:16]}  Kf8 {[%clk 0:00:08]} 89. Ke6 {[%clk 0:00:16]}  Kg7 {[%clk 0:00:08]} 90. Kf5 {[%clk 0:00:17]}  Kg8 {[%clk 0:00:09]} 91. Kf4 {[%clk 0:00:17]}  Kg7 {[%clk 0:00:09]} 92. Kg5 {[%clk 0:00:18]}  Kg8 {[%clk 0:00:09]} 93. Kh5 {[%clk 0:00:18]}  Kg7 {[%clk 0:00:09]} 94. Kg5 {[%clk 0:00:19]} 1/2-1/2


[Site "https://www.chess.com"]

[Event "Titled Tuesday Blitz January 03 Late 2023"]
[White "Adewumi, Tanitoluwa"]
[Black "Tregubov, Pavel V."]
[WhiteFideId "30966396"]
[BlackFideId "4115341"]
[WhiteElo "2283"]
[BlackElo "2553"]
[Result "0-1"]
[Round "10"]
[TimeControl "180+2"]
[Date "2023.01.03"]
[WhiteClock "0:00:02"]
[BlackClock "0:00:05"]

1. e4 {[%clk 0:02:56]}  e6 {[%clk 0:02:59]} 2. d4 {[%clk 0:02:36]}  d5 {[%clk 0:02:50]} 3. exd5 {[%clk 0:02:37]}  exd5 {[%clk 0:02:49]} 4. Nf3 {[%clk 0:02:37]}  Bd6 {[%clk 0:02:44]} 5. c4 {[%clk 0:02:31]}  Nf6 {[%clk 0:02:37]} 6. c5 {[%clk 0:02:30]}  Be7 {[%clk 0:02:37]} 7. Bd3 {[%clk 0:02:31]}  O-O {[%clk 0:02:34]} 8. O-O {[%clk 0:02:30]}  b6 {[%clk 0:02:34]} 9. Be3 {[%clk 0:02:30]}  Ng4 {[%clk 0:02:21]} 10. Bf4 {[%clk 0:02:29]}  bxc5 {[%clk 0:02:07]} 11. dxc5 {[%clk 0:02:30]}  Ba6 {[%clk 0:02:05]} 12. Nc3 {[%clk 0:01:58]}  Bxd3 {[%clk 0:01:59]} 13. Qxd3 {[%clk 0:01:57]}  c6 {[%clk 0:01:59]} 14. b4 {[%clk 0:01:53]}  Nd7 {[%clk 0:01:58]} 15. Nd4 {[%clk 0:01:35]}  Rc8 {[%clk 0:01:47]} 16. Qa6 {[%clk 0:01:01]}  Bf6 {[%clk 0:01:42]} 17. Nxc6 {[%clk 0:00:54]}  Rxc6 {[%clk 0:01:41]} 18. Qxc6 {[%clk 0:00:55]}  Bxc3 {[%clk 0:01:40]} 19. Rad1 {[%clk 0:00:50]}  d4 {[%clk 0:01:40]} 20. a3 {[%clk 0:00:38]}  Qf6 {[%clk 0:01:30]} 21. Bd6 {[%clk 0:00:26]}  Nde5 {[%clk 0:01:26]} 22. Qe4 {[%clk 0:00:25]}  Re8 {[%clk 0:00:29]} 23. h3 {[%clk 0:00:24]}  Nh6 {[%clk 0:00:19]} 24. f4 {[%clk 0:00:21]}  Qg6 {[%clk 0:00:19]} 25. Qe2 {[%clk 0:00:05]}  d3 {[%clk 0:00:18]} 26. Qe3 {[%clk 0:00:04]}  Nf5 {[%clk 0:00:16]} 27. Qe4 {[%clk 0:00:02]}  Bd4+ {[%clk 0:00:10]} 28. Kh2 {[%clk 0:00:02]}  Qg3+ {[%clk 0:00:10]} 29. Kh1 {[%clk 0:00:02]}  Ne3 {[%clk 0:00:08]} 30. fxe5 {[%clk 0:00:02]}  Nxf1 {[%clk 0:00:08]} 31. Rxf1 {[%clk 0:00:03]}  Bxe5 {[%clk 0:00:06]} 32. Qd5 {[%clk 0:00:02]}  Qh2# {[%clk 0:00:05]} 0-1


[Site "https://www.chess.com"]

[Event "Titled Tuesday Blitz January 03 Late 2023"]
[White "Pranav, V"]
[Black "AidenRchess"]
[WhiteFideId "25060783"]
[WhiteElo "2597"]
[BlackElo "2398"]
[Result "1-0"]
[Round "10"]
[TimeControl "180+2"]
[Date "2023.01.03"]
[WhiteClock "0:02:42"]
[BlackClock "0:01:38"]

1. e4 {[%clk 0:02:50]}  c5 {[%clk 0:02:59]} 2. Nf3 {[%clk 0:02:46]}  d6 {[%clk 0:02:59]} 3. c3 {[%clk 0:02:42]}  Nf6 {[%clk 0:02:58]} 4. Be2 {[%clk 0:02:43]}  Nc6 {[%clk 0:02:49]} 5. d4 {[%clk 0:02:42]}  cxd4 {[%clk 0:02:48]} 6. cxd4 {[%clk 0:02:43]}  Nxe4 {[%clk 0:02:48]} 7. d5 {[%clk 0:02:42]}  Qa5+ {[%clk 0:02:49]} 8. Nc3 {[%clk 0:02:43]}  Nxc3 {[%clk 0:02:48]} 9. bxc3 {[%clk 0:02:44]}  Ne5 {[%clk 0:02:48]} 10. Nxe5 {[%clk 0:02:44]}  Qxc3+ {[%clk 0:02:44]} 11. Bd2 {[%clk 0:02:44]}  Qxe5 {[%clk 0:02:45]} 12. O-O {[%clk 0:02:45]}  g6 {[%clk 0:02:44]} 13. Bb5+ {[%clk 0:02:44]}  Bd7 {[%clk 0:02:43]} 14. Bxd7+ {[%clk 0:02:44]}  Kxd7 {[%clk 0:02:44]} 15. Qa4+ {[%clk 0:02:44]}  Kd8 {[%clk 0:02:39]} 16. Rab1 {[%clk 0:02:44]}  b6 {[%clk 0:02:27]} 17. Rxb6 {[%clk 0:02:44]}  Qxd5 {[%clk 0:02:23]} 18. Rb5 {[%clk 0:02:44]}  Qxd2 {[%clk 0:01:54]} 19. Rb7 {[%clk 0:02:43]}  Qc3 {[%clk 0:01:38]} 20. Qd7# {[%clk 0:02:42]} 1-0


[Site "https://www.chess.com"]

[Event "Titled Tuesday Blitz January 03 Late 2023"]
[White "Mei, Austin"]
[Black "Cristobal, Manuel"]
[WhiteFideId "30948479"]
[BlackFideId "112879"]
[WhiteElo "2218"]
[BlackElo "2257"]
[Result "0-1"]
[Round "10"]
[TimeControl "180+2"]
[Date "2023.01.03"]
[WhiteClock "0:00:02"]
[BlackClock "0:01:20"]

1. e4 {[%clk 0:03:00]}  Nc6 {[%clk 0:02:32]} 2. Nf3 {[%clk 0:02:59]}  d5 {[%clk 0:02:31]} 3. exd5 {[%clk 0:02:58]}  Qxd5 {[%clk 0:02:32]} 4. Nc3 {[%clk 0:02:58]}  Qh5 {[%clk 0:02:31]} 5. d4 {[%clk 0:02:57]}  Bg4 {[%clk 0:02:31]} 6. Be2 {[%clk 0:01:45]}  Nf6 {[%clk 0:02:28]} 7. Bf4 {[%clk 0:01:39]}  O-O-O {[%clk 0:02:27]} 8. Ne5 {[%clk 0:01:15]}  Bxe2 {[%clk 0:02:20]} 9. Nxe2 {[%clk 0:01:13]}  Nxe5 {[%clk 0:02:19]} 10. Bxe5 {[%clk 0:01:12]}  e6 {[%clk 0:02:17]} 11. Ng3 {[%clk 0:01:02]}  Qxd1+ {[%clk 0:02:15]} 12. Rxd1 {[%clk 0:01:03]}  Be7 {[%clk 0:02:14]} 13. c3 {[%clk 0:01:02]}  h5 {[%clk 0:02:14]} 14. Bxf6 {[%clk 0:01:01]}  Bxf6 {[%clk 0:02:13]} 15. Ne4 {[%clk 0:01:01]}  Be7 {[%clk 0:02:12]} 16. h4 {[%clk 0:01:01]}  b6 {[%clk 0:02:10]} 17. Ke2 {[%clk 0:01:00]}  Kb7 {[%clk 0:02:09]} 18. a4 {[%clk 0:01:00]}  Rd5 {[%clk 0:02:08]} 19. Rh3 {[%clk 0:01:00]}  Rhd8 {[%clk 0:02:06]} 20. Rf3 {[%clk 0:00:56]}  f5 {[%clk 0:02:02]} 21. Ng5 {[%clk 0:00:41]}  Bxg5 {[%clk 0:02:01]} 22. hxg5 {[%clk 0:00:42]}  c5 {[%clk 0:02:01]} 23. Re3 {[%clk 0:00:29]}  R5d6 {[%clk 0:01:59]} 24. g6 {[%clk 0:00:21]}  cxd4 {[%clk 0:01:53]} 25. Rxd4 {[%clk 0:00:22]}  Kc6 {[%clk 0:01:51]} 26. Kd3 {[%clk 0:00:20]}  Rxd4+ {[%clk 0:01:49]} 27. cxd4 {[%clk 0:00:20]}  Kd6 {[%clk 0:01:49]} 28. Re5 {[%clk 0:00:20]}  Rc8 {[%clk 0:01:48]} 29. Re2 {[%clk 0:00:17]}  Rc1 {[%clk 0:01:47]} 30. Ke3 {[%clk 0:00:11]}  Kd5 {[%clk 0:01:44]} 31. Kf4 {[%clk 0:00:12]}  Rc4 {[%clk 0:01:42]} 32. Re5+ {[%clk 0:00:10]}  Kd6 {[%clk 0:01:41]} 33. Ke3 {[%clk 0:00:08]}  Rxa4 {[%clk 0:01:41]} 34. Rb5 {[%clk 0:00:06]}  Ra1 {[%clk 0:01:38]} 35. Kf4 {[%clk 0:00:07]}  Re1 {[%clk 0:01:37]} 36. Kg5 {[%clk 0:00:06]}  Re2 {[%clk 0:01:36]} 37. Kxh5 {[%clk 0:00:06]}  Rxf2 {[%clk 0:01:37]} 38. g4 {[%clk 0:00:06]}  Rh2+ {[%clk 0:01:29]} 39. Kg5 {[%clk 0:00:06]}  Rg2 {[%clk 0:01:30]} 40. Rb3 {[%clk 0:00:06]}  Rxg4+ {[%clk 0:01:29]} 41. Kh5 {[%clk 0:00:07]}  Rxd4 {[%clk 0:01:30]} 42. Rc3 {[%clk 0:00:07]}  e5 {[%clk 0:01:27]} 43. Rc8 {[%clk 0:00:07]}  e4 {[%clk 0:01:22]} 44. Rg8 {[%clk 0:00:07]}  e3 {[%clk 0:01:21]} 45. Rd8+ {[%clk 0:00:07]}  Ke5 {[%clk 0:01:20]} 46. Re8+ {[%clk 0:00:06]}  Kf4 {[%clk 0:01:21]} 47. Rf8 {[%clk 0:00:01]}  Rd1 {[%clk 0:01:20]} 48. Rxf5+ {[%clk 0:00:01]}  Kxf5 {[%clk 0:01:21]} 49. b4 {[%clk 0:00:02]}  Rh1# {[%clk 0:01:20]} 0-1


[Site "https://www.chess.com"]

[Event "Titled Tuesday Blitz January 03 Late 2023"]
[White "Maksimovic, Bojan"]
[Black "ArchibaldCerveza29"]
[WhiteFideId "14408120"]
[WhiteElo "2486"]
[BlackElo "2509"]
[Result "1-0"]
[Round "10"]
[TimeControl "180+2"]
[Date "2023.01.03"]
[WhiteClock "0:00:07"]
[BlackClock "0:00:17"]

1. g3 {[%clk 0:03:00]}  d5 {[%clk 0:02:59]} 2. Bg2 {[%clk 0:03:00]}  Nf6 {[%clk 0:02:59]} 3. Nf3 {[%clk 0:03:00]}  e6 {[%clk 0:03:00]} 4. O-O {[%clk 0:03:00]}  Be7 {[%clk 0:03:01]} 5. c4 {[%clk 0:03:00]}  O-O {[%clk 0:03:02]} 6. d4 {[%clk 0:03:00]}  dxc4 {[%clk 0:03:02]} 7. Qc2 {[%clk 0:03:01]}  a6 {[%clk 0:02:56]} 8. a4 {[%clk 0:03:00]}  Bd7 {[%clk 0:02:56]} 9. Qxc4 {[%clk 0:03:00]}  Bc6 {[%clk 0:02:57]} 10. Bg5 {[%clk 0:02:59]}  Bd5 {[%clk 0:02:57]} 11. Qc1 {[%clk 0:02:54]}  h6 {[%clk 0:02:46]} 12. Bxf6 {[%clk 0:02:54]}  Bxf6 {[%clk 0:02:47]} 13. Nc3 {[%clk 0:02:52]}  Bxf3 {[%clk 0:02:44]} 14. Bxf3 {[%clk 0:02:51]}  c6 {[%clk 0:02:42]} 15. Rd1 {[%clk 0:02:43]}  a5 {[%clk 0:02:42]} 16. Ne4 {[%clk 0:02:40]}  Na6 {[%clk 0:02:40]} 17. e3 {[%clk 0:02:35]}  Nb4 {[%clk 0:02:39]} 18. Nc5 {[%clk 0:02:32]}  Ra7 {[%clk 0:02:20]} 19. Kg2 {[%clk 0:02:31]}  Be7 {[%clk 0:02:19]} 20. Nd3 {[%clk 0:02:30]}  Ra6 {[%clk 0:02:17]} 21. Nxb4 {[%clk 0:02:21]}  Bxb4 {[%clk 0:02:18]} 22. Qc2 {[%clk 0:02:21]}  Qe7 {[%clk 0:02:13]} 23. h4 {[%clk 0:02:21]}  Rd8 {[%clk 0:02:12]} 24. h5 {[%clk 0:02:21]}  Raa8 {[%clk 0:02:10]} 25. Be2 {[%clk 0:02:21]}  e5 {[%clk 0:02:02]} 26. dxe5 {[%clk 0:02:19]}  Qxe5 {[%clk 0:02:03]} 27. b3 {[%clk 0:02:20]}  Bc3 {[%clk 0:01:43]} 28. Rac1 {[%clk 0:02:19]}  Bb2 {[%clk 0:01:34]} 29. Rb1 {[%clk 0:02:18]}  Ba3 {[%clk 0:01:32]} 30. Rd3 {[%clk 0:02:05]}  Rxd3 {[%clk 0:01:31]} 31. Qxd3 {[%clk 0:02:06]}  Be7 {[%clk 0:01:19]} 32. Rd1 {[%clk 0:02:02]}  Rd8 {[%clk 0:01:16]} 33. Qxd8+ {[%clk 0:01:47]}  Bxd8 {[%clk 0:01:17]} 34. Rxd8+ {[%clk 0:01:47]}  Kh7 {[%clk 0:01:18]} 35. Bd3+ {[%clk 0:01:47]}  g6 {[%clk 0:01:18]} 36. Rd7 {[%clk 0:01:40]}  Qxh5 {[%clk 0:01:17]} 37. Rxf7+ {[%clk 0:01:38]}  Kg8 {[%clk 0:01:17]} 38. Bc4 {[%clk 0:01:36]}  Kh8 {[%clk 0:01:14]} 39. Rf8+ {[%clk 0:01:35]}  Kg7 {[%clk 0:01:13]} 40. Rf7+ {[%clk 0:01:36]}  Kh8 {[%clk 0:01:14]} 41. Rxb7 {[%clk 0:01:36]}  Qe5 {[%clk 0:01:08]} 42. Rf7 {[%clk 0:01:20]}  h5 {[%clk 0:01:06]} 43. Rf4 {[%clk 0:01:16]}  Kg7 {[%clk 0:01:04]} 44. Rd4 {[%clk 0:01:14]}  Qf5 {[%clk 0:00:59]} 45. Kf1 {[%clk 0:01:13]}  c5 {[%clk 0:00:54]} 46. Rd5 {[%clk 0:01:12]}  Qe4 {[%clk 0:00:46]} 47. Rxc5 {[%clk 0:01:08]}  h4 {[%clk 0:00:38]} 48. gxh4 {[%clk 0:01:04]}  Qxh4 {[%clk 0:00:39]} 49. Rd5 {[%clk 0:01:02]}  Qg4 {[%clk 0:00:36]} 50. Rd4 {[%clk 0:00:56]}  Qf3 {[%clk 0:00:35]} 51. Bd5 {[%clk 0:00:51]}  Qh5 {[%clk 0:00:33]} 52. Ke1 {[%clk 0:00:49]}  Qf5 {[%clk 0:00:31]} 53. Bc4 {[%clk 0:00:46]}  g5 {[%clk 0:00:30]} 54. Ke2 {[%clk 0:00:44]}  Qc2+ {[%clk 0:00:28]} 55. Rd2 {[%clk 0:00:44]}  Qf5 {[%clk 0:00:27]} 56. Rd5 {[%clk 0:00:43]}  Qc2+ {[%clk 0:00:18]} 57. Kf3 {[%clk 0:00:43]}  Kf6 {[%clk 0:00:16]} 58. Rd6+ {[%clk 0:00:30]}  Kg7 {[%clk 0:00:16]} 59. Rd4 {[%clk 0:00:28]}  Kf6 {[%clk 0:00:16]} 60. Kg2 {[%clk 0:00:25]}  Qb1 {[%clk 0:00:14]} 61. Rd6+ {[%clk 0:00:24]}  Kg7 {[%clk 0:00:14]} 62. Rd5 {[%clk 0:00:23]}  Qe4+ {[%clk 0:00:13]} 63. Kg3 {[%clk 0:00:23]}  Qh4+ {[%clk 0:00:13]} 64. Kf3 {[%clk 0:00:22]}  Qh5+ {[%clk 0:00:13]} 65. Kg2 {[%clk 0:00:19]}  Qg4+ {[%clk 0:00:14]} 66. Kf1 {[%clk 0:00:19]}  Qh3+ {[%clk 0:00:09]} 67. Ke1 {[%clk 0:00:18]}  Qh1+ {[%clk 0:00:09]} 68. Ke2 {[%clk 0:00:19]}  Qh5+ {[%clk 0:00:08]} 69. Kd2 {[%clk 0:00:12]}  Qh4 {[%clk 0:00:08]} 70. Rf5 {[%clk 0:00:08]}  g4 {[%clk 0:00:02]} 71. Rf4 {[%clk 0:00:08]}  Qh3 {[%clk 0:00:02]} 72. Be2 {[%clk 0:00:08]}  Qh2 {[%clk 0:00:01]} 73. Rxg4+ {[%clk 0:00:08]}  Kf6 {[%clk 0:00:02]} 74. Rf4+ {[%clk 0:00:08]}  Ke5 {[%clk 0:00:03]} 75. Bc4 {[%clk 0:00:09]}  Qh8 {[%clk 0:00:03]} 76. Rd4 {[%clk 0:00:09]}  Qf8 {[%clk 0:00:03]} 77. f4+ {[%clk 0:00:09]}  Kf6 {[%clk 0:00:03]} 78. Kd3 {[%clk 0:00:09]}  Qb4 {[%clk 0:00:03]} 79. Rd5 {[%clk 0:00:09]}  Qe1 {[%clk 0:00:04]} 80. Kd4 {[%clk 0:00:04]}  Qd2+ {[%clk 0:00:03]} 81. Kc5 {[%clk 0:00:03]}  Qxe3+ {[%clk 0:00:03]} 82. Kb5 {[%clk 0:00:03]}  Qxf4 {[%clk 0:00:03]} 83. Kxa5 {[%clk 0:00:04]}  Ke7 {[%clk 0:00:02]} 84. Kb4 {[%clk 0:00:03]}  Qf2 {[%clk 0:00:02]} 85. a5 {[%clk 0:00:03]}  Qf8 {[%clk 0:00:02]} 86. a6 {[%clk 0:00:03]}  Qb8+ {[%clk 0:00:02]} 87. Rb5 {[%clk 0:00:03]}  Qd6+ {[%clk 0:00:02]} 88. Ka5 {[%clk 0:00:04]}  Qa3+ {[%clk 0:00:02]} 89. Kb6 {[%clk 0:00:04]}  Qd6+ {[%clk 0:00:03]} 90. Ka7 {[%clk 0:00:05]}  Kd8 {[%clk 0:00:03]} 91. Rb8+ {[%clk 0:00:05]}  Kc7 {[%clk 0:00:03]} 92. Rb7+ {[%clk 0:00:05]}  Kc8 {[%clk 0:00:04]} 93. Bb5 {[%clk 0:00:02]}  Qc5+ {[%clk 0:00:03]} 94. Ka8 {[%clk 0:00:02]}  Qd5 {[%clk 0:00:03]} 95. Bd7+ {[%clk 0:00:02]}  Kd8 {[%clk 0:00:03]} 96. a7 {[%clk 0:00:03]}  Qe4 {[%clk 0:00:02]} 97. Ba4 {[%clk 0:00:02]}  Kc8 {[%clk 0:00:02]} 98. Bd7+ {[%clk 0:00:03]}  Kd8 {[%clk 0:00:02]} 99. b4 {[%clk 0:00:04]}  Qh1 {[%clk 0:00:02]} 100. b5 {[%clk 0:00:04]}  Qg2 {[%clk 0:00:03]} 101. b6 {[%clk 0:00:05]}  Qf3 {[%clk 0:00:03]} 102. Kb8 {[%clk 0:00:06]}  Qf4+ {[%clk 0:00:03]} 103. Rc7 {[%clk 0:00:06]}  Qb4 {[%clk 0:00:01]} 104. a8=Q {[%clk 0:00:04]}  Qxb6+ {[%clk 0:00:01]} 105. Qb7 {[%clk 0:00:05]}  Qd6 {[%clk 0:00:01]} 106. Qc8+ {[%clk 0:00:04]}  Ke7 {[%clk 0:00:02]} 107. Bc6+ {[%clk 0:00:05]}  Kf6 {[%clk 0:00:03]} 108. Qd7 {[%clk 0:00:05]}  Qb4+ {[%clk 0:00:03]} 109. Bb7 {[%clk 0:00:05]}  Qf4 {[%clk 0:00:02]} 110. Qf7+ {[%clk 0:00:04]}  Kg5 {[%clk 0:00:03]} 111. Qxf4+ {[%clk 0:00:02]}  Kxf4 {[%clk 0:00:04]} 112. Rc6 {[%clk 0:00:02]}  Ke5 {[%clk 0:00:04]} 113. Kc7 {[%clk 0:00:03]}  Kd4 {[%clk 0:00:05]} 114. Kd7 {[%clk 0:00:04]}  Ke5 {[%clk 0:00:06]} 115. Bc8 {[%clk 0:00:05]}  Kd4 {[%clk 0:00:06]} 116. Kc7 {[%clk 0:00:06]}  Ke3 {[%clk 0:00:07]} 117. Kb6 {[%clk 0:00:07]}  Kf4 {[%clk 0:00:08]} 118. Kb5 {[%clk 0:00:08]}  Ke5 {[%clk 0:00:09]} 119. Bd7 {[%clk 0:00:09]}  Kd5 {[%clk 0:00:09]} 120. Kb4 {[%clk 0:00:10]}  Ke5 {[%clk 0:00:10]} 121. Kb3 {[%clk 0:00:11]}  Kd5 {[%clk 0:00:11]} 122. Kc3 {[%clk 0:00:11]}  Ke5 {[%clk 0:00:12]} 123. Kd3 {[%clk 0:00:12]}  Kd5 {[%clk 0:00:13]} 124. Ke3 {[%clk 0:00:12]}  Ke5 {[%clk 0:00:13]} 125. Rc5+ {[%clk 0:00:12]}  Kd6 {[%clk 0:00:13]} 126. Kd4 {[%clk 0:00:13]}  Ke7 {[%clk 0:00:13]} 127. Kd5 {[%clk 0:00:13]}  Kd8 {[%clk 0:00:13]} 128. Kc6 {[%clk 0:00:11]}  Ke7 {[%clk 0:00:13]} 129. Re5+ {[%clk 0:00:12]}  Kf7 {[%clk 0:00:14]} 130. Kd6 {[%clk 0:00:12]}  Kf6 {[%clk 0:00:14]} 131. Rf5+ {[%clk 0:00:12]}  Kg6 {[%clk 0:00:15]} 132. Ke6 {[%clk 0:00:13]}  Kg7 {[%clk 0:00:15]} 133. Rg5+ {[%clk 0:00:11]}  Kh6 {[%clk 0:00:15]} 134. Kf6 {[%clk 0:00:11]}  Kh7 {[%clk 0:00:16]} 135. Rg4 {[%clk 0:00:09]}  Kh8 {[%clk 0:00:16]} 136. Rh4+ {[%clk 0:00:09]}  Kg8 {[%clk 0:00:16]} 137. Be6+ {[%clk 0:00:10]}  Kf8 {[%clk 0:00:17]} 138. Rh8# {[%clk 0:00:07]} 1-0


[Site "https://www.chess.com"]